fUST/lending_fUST_20260430
["ID","MTS","AMOUNT","RATE_DAILY","PERIOD"]
[421384474,1777543832000,-180.90934082,0.00012769,2]
[421384475,1777543832000,-759.41239506,0.00013699,2]
[421384515,1777543838000,-407.25006929,0.00017427,30]
[421384507,1777543838000,-240.58760494,0.00013699,2]
[421384508,1777543838000,-615.0,0.00013699,2]
[421384510,1777543838000,-3309.00756481,0.000155,2]
[421384509,1777543838000,-828.07997117,0.000155,2]
[421384512,1777543838000,-1000.0,0.00016613,2]
[421384513,1777543838000,-1766.94894874,0.00017295,2]
[421384523,1777543838000,-5131.87852553,0.00018742,2]
[421384518,1777543838000,-407.25006929,0.00017727,60]
[421384519,1777543838000,-407.25006929,0.00017827,60]
[421384511,1777543838000,-500.0,0.00015732,2]
[421384514,1777543838000,-407.25006929,0.00017327,14]
[421384516,1777543838000,-407.25006929,0.00017527,30]
[421384526,1777543838000,-1092.0,0.00018971,2]
[421384525,1777543838000,-161.81549429,0.00018873,2]
[421384527,1777543838000,-6093.4076766,0.00018973,2]
[421384528,1777543838000,-1437.21047514,0.00018973,2]
[421384529,1777543838000,-28666.5839164,0.00018973,2]
[421384524,1777543838000,-353.78335095,0.00018872,2]
[421384522,1777543838000,-191.72,0.00018419,9]
[421384521,1777543838000,-5085.23720172,0.00018019,2]
[421384520,1777543838000,-300.0,0.00018,2]
[421384517,1777543838000,-407.25006929,0.00017627,60]
[421384543,1777543840000,-5339.53196822,0.00018973,2]
[421384542,1777543840000,-2082.07231819,0.00018973,2]
[421384550,1777543843000,-1999.3,0.00018973,2]
[421384554,1777543847000,-766.0,0.00017295,2]
[421384553,1777543847000,-766.0,0.00017295,2]
[421384556,1777543847000,-766.0,0.00017295,2]
[421384557,1777543847000,-766.0,0.00017295,2]
[421384555,1777543847000,-766.0,0.00017295,2]
[421384559,1777543847000,-762.15,0.00017295,2]
[421384560,1777543847000,-694.95102313,0.00017295,2]
[421384562,1777543847000,-766.0,0.00017295,2]
[421384561,1777543847000,-71.04897687,0.00017295,2]
[421384563,1777543847000,-26477.64167072,0.00018973,2]
[421384558,1777543847000,-3.85,0.00017295,2]
[421384566,1777544546000,166.0,0.00020121,120]
[421384567,1777544548000,166.0,0.00021127,120]
[421384649,1777545038000,-309.56043209,0.00017622,2]
[421384641,1777545038000,-2150.738,0.00016675,2]
[421384642,1777545038000,-557.5788265,0.0001673,2]
[421384639,1777545038000,-204.0,0.00016577,2]
[421384644,1777545038000,-599.60298507,0.0001684,2]
[421384648,1777545038000,-693.3919763,0.0001706,2]
[421384646,1777545038000,-644.79446246,0.0001695,2]
[421384645,1777545038000,-621.78829552,0.00016895,2]
[421384652,1777545038000,-1152.0,0.00017792,2]
[421384663,1777545038000,-498.04517135,0.00018567,2]
[421384640,1777545038000,-537.6845,0.00016675,2]
[421384647,1777545038000,-668.65185757,0.00017005,2]
[421384643,1777545038000,-578.20924308,0.00016785,2]
[421384629,1777545038000,-5000.0,0.00012021,2]
[421384638,1777545038000,-823.0,0.00016212,2]
[421384634,1777545038000,-1000.0,0.00013699,2]
[421384637,1777545038000,-1000.0,0.00015895,2]
[421384635,1777545038000,-177.0,0.00014577,2]
[421384631,1777545038000,-300.0,0.00012264,2]
[421384632,1777545038000,-150.0,0.00012577,2]
[421384636,1777545038000,-587.0,0.00014772,2]
[421384630,1777545038000,-591.0,0.00012142,2]
[421384651,1777545038000,-1236.8063859,0.00017722,2]
[421384633,1777545038000,-420.0,0.0001346,2]
[421384628,1777545038000,-5000.0,0.00011901,2]
[421384627,1777545038000,-674.48980947,0.00011782,2]
[421384650,1777545038000,-10522.9017435,0.00017722,2]
[421384654,1777545038000,-309.56043204,0.0001813,2]
[421384678,1777545038000,-45921.10069919,0.00018568,2]
[421384653,1777545038000,-500.0,0.00018,2]
[421384683,1777545038000,-3536.23883582,0.00018598,2]
[421384682,1777545038000,-31019.13530686,0.00018598,2]
[421384681,1777545038000,-17226.94880536,0.00018598,2]
[421384662,1777545038000,-790.77598809,0.00018567,2]
[421384679,1777545038000,-32776.45147989,0.00018598,2]
[421384677,1777545038000,-56693.91296027,0.00018568,2]
[421384669,1777545038000,-790.77598809,0.00018567,2]
[421384672,1777545038000,-790.77598809,0.00018567,2]
[421384673,1777545038000,-790.77598809,0.00018567,2]
[421384671,1777545038000,-790.77598809,0.00018567,2]
[421384674,1777545038000,-790.77598809,0.00018567,2]
[421384670,1777545038000,-790.77598809,0.00018567,2]
[421384668,1777545038000,-790.77598809,0.00018567,2]
[421384680,1777545038000,-6734.74486728,0.00018598,2]
[421384666,1777545038000,-790.77598809,0.00018567,2]
[421384667,1777545038000,-790.77598809,0.00018567,2]
[421384660,1777545038000,-790.77598809,0.00018567,2]
[421384655,1777545038000,-152.0,0.00018296,7]
[421384657,1777545038000,-629.0,0.00018484,2]
[421384656,1777545038000,-152.0,0.0001838,7]
[421384658,1777545038000,-790.77598809,0.00018567,2]
[421384659,1777545038000,-790.77598809,0.00018567,2]
[421384665,1777545038000,-790.77598809,0.00018567,2]
[421384664,1777545038000,-790.77598809,0.00018567,2]
[421384676,1777545038000,-790.77598809,0.00018567,2]
[421384675,1777545038000,-790.77598809,0.00018567,2]
[421384661,1777545038000,-790.77598809,0.00018567,2]
[421384689,1777545040000,-7951.38691213,0.00018598,2]
[421384712,1777545048000,-500.0,0.00018483,2]
[421384707,1777545048000,-500.0,0.00018483,2]
[421384714,1777545048000,-500.0,0.00018483,2]
[421384711,1777545048000,-500.0,0.00018483,2]
[421384710,1777545048000,-500.0,0.00018483,2]
[421384713,1777545048000,-500.0,0.00018483,2]
[421384704,1777545048000,-500.0,0.00018483,2]
[421384708,1777545048000,-500.0,0.00018483,2]
[421384703,1777545048000,-500.0,0.00018483,2]
[421384715,1777545048000,-500.0,0.00018483,2]
[421384709,1777545048000,-158.59565664,0.00018483,2]
[421384705,1777545048000,-500.0,0.00018483,2]
[421384702,1777545048000,-160.04802084,0.00018483,2]
[421384701,1777545048000,-339.95197916,0.00018483,2]
[421384699,1777545048000,-173.16669604,0.00018483,2]
[421384700,1777545048000,-272.79009297,0.00018483,2]
[421384717,1777545048000,-500.0,0.00018483,2]
[421384706,1777545048000,-500.0,0.00018483,2]
[421384716,1777545048000,-500.0,0.00018483,2]
[421384730,1777545048000,-500.0,0.00018483,2]
[421384720,1777545048000,-500.0,0.00018483,2]
[421384738,1777545048000,-284.64068081,0.00018598,2]
[421384736,1777545048000,-151.0,0.00018568,2]
[421384735,1777545048000,-896.75205161,0.00018598,2]
[421384733,1777545048000,-500.0,0.00018483,2]
[421384731,1777545048000,-500.0,0.00018483,2]
[421384734,1777545048000,-51703.43926003,0.00018598,2]
[421384732,1777545048000,-500.0,0.00018483,2]
[421384737,1777545048000,-2583.30346923,0.00018598,2]
[421384728,1777545048000,-521.37024708,0.00018483,2]
[421384718,1777545048000,-490.103487,0.00018483,2]
[421384726,1777545048000,-500.0,0.00018483,2]
[421384723,1777545048000,-500.0,0.00018483,2]
[421384725,1777545048000,-56.95962838,0.00018483,2]
[421384724,1777545048000,-443.04037162,0.00018483,2]
[421384721,1777545048000,-500.0,0.00018483,2]
[421384727,1777545048000,-500.0,0.00018483,2]
[421384719,1777545048000,-9.896513,0.00018483,2]
[421384722,1777545048000,-500.0,0.00018483,2]
[421384729,1777545048000,-500.0,0.00018483,2]
[421384848,1777545743000,434.34,0.00021918,120]
[421384851,1777546013000,1000.0,6.001e-05,2]
[421384853,1777546013000,1000.0,6.001e-05,2]
[421384855,1777546013000,1000.0,6.001e-05,2]
[421384852,1777546013000,1000.0,6.001e-05,2]
[421384854,1777546013000,1000.0,6.001e-05,2]
[421384857,1777546022000,1000.0,6.001e-05,2]
[421384856,1777546022000,1000.0,6.001e-05,2]
[421384858,1777546213000,3000.0,6e-05,2]
[421384892,1777546240000,-506.0,6.001e-05,2]
[421384893,1777546240000,-150.0,6.177e-05,2]
[421384895,1777546240000,-300.0,7.599e-05,2]
[421384894,1777546240000,-151.0,6.569e-05,2]
[421384896,1777546241000,-181.72719031,7.6e-05,2]
[421384917,1777546243000,-2409.68136767,7.6e-05,2]
[421384926,1777546247000,-4602.33260778,7.6e-05,2]
[421384928,1777546247000,-3497.97213727,7.6e-05,2]
[421384927,1777546247000,-48476.2619609,7.6e-05,2]
[421384931,1777547332000,312.27,0.00021918,120]
[421384986,1777547438000,-152.0,7.857e-05,2]
[421384987,1777547438000,-151.0,8.101e-05,2]
[421384984,1777547438000,-152.0,7.857e-05,2]
[421384988,1777547438000,-151.0,8.101e-05,2]
[421384981,1777547438000,-527.0,7.6e-05,2]
[421384982,1777547438000,-152.0,7.857e-05,2]
[421384980,1777547438000,-2486.60016007,7.6e-05,2]
[421384979,1777547438000,-150.0,7.6e-05,2]
[421384989,1777547439000,-300.0,9.17e-05,2]
[421384991,1777547439000,-152.0,9.172e-05,2]
[421384990,1777547439000,-152.0,9.172e-05,2]
[421384995,1777547439000,-3125.63975254,9.425e-05,2]
[421384993,1777547439000,-35599.81034595,9.172e-05,2]
[421384992,1777547439000,-152.0,9.172e-05,2]
[421384994,1777547439000,-6209.90961128,9.174e-05,2]
[421385025,1777547447000,-4925.21162246,9.425e-05,2]
[421385024,1777547447000,-3595.75720821,9.425e-05,2]
[421385023,1777547447000,-171.02632281,9.331e-05,2]
[421385026,1777547511000,1500.0,0.0001,30]
[421385027,1777547666000,7000.0,0.00012,90]
[421385063,1777548631000,-199.49535869,9.425e-05,2]
[421385057,1777548631000,-551.0,9.372e-05,2]
[421385056,1777548631000,-505.94887088,9.372e-05,2]
[421385059,1777548631000,-274.42403219,9.425e-05,2]
[421385065,1777548631000,-151.0,9.428e-05,2]
[421385075,1777548631000,-1889.21131437,9.872e-05,2]
[421385073,1777548631000,-1278.61919189,9.572e-05,2]
[421385067,1777548631000,-149.50464131,9.572e-05,2]
[421385080,1777548632000,-300.0,0.0001007,2]
[421385078,1777548632000,-2151.2448246,9.972e-05,2]
[421385076,1777548632000,-480.0,9.971e-05,2]
[421385081,1777548632000,-2350.29879553,0.00010072,2]
[421385092,1777548632000,-559.62709693,0.0001188,2]
[421385079,1777548632000,-1287.19333003,0.0001,2]
[421385085,1777548632000,-501.0,0.00010959,2]
[421385086,1777548632000,-420.0,0.00011076,2]
[421385088,1777548632000,-177.0,0.00011298,2]
[421385087,1777548632000,-2739.4668971,0.00011192,2]
[421385090,1777548632000,-2091.20317005,0.0001188,2]
[421385083,1777548632000,-151.0,0.00010259,2]
[421385187,1777548640000,-270.8653012,0.000126,2]
[421385199,1777548640000,-155.37,0.00014534,2]
[421385185,1777548640000,-3056.63526853,0.00012568,2]
[421385203,1777548640000,-1821.91321461,0.00015319,2]
[421385202,1777548640000,-150.0,0.00015298,2]
[421385198,1777548640000,-3358.43208318,0.00013943,2]
[421385196,1777548640000,-1000.0,0.00013699,2]
[421385182,1777548640000,-587.0,0.0001188,2]
[421385180,1777548640000,-152.0,0.0001188,2]
[421385179,1777548640000,-104.00818691,0.0001188,2]
[421385184,1777548640000,-587.0,0.00012183,2]
[421385201,1777548640000,-1152.0,0.00014739,2]
[421385205,1777548640000,-1809.94025268,0.00015319,2]
[421385194,1777548640000,-1000.0,0.00013699,2]
[421385188,1777548640000,-3188.09428336,0.00013256,2]
[421385192,1777548640000,-823.0,0.000134,2]
[421385216,1777548640000,-500.0,0.00017425,7]
[421385215,1777548640000,-500.0,0.00017425,7]
[421385214,1777548640000,-4093.52733561,0.00017383,2]
[421385211,1777548640000,-262.82982889,0.00016691,2]
[421385207,1777548640000,-500.0,0.00016691,2]
[421385212,1777548640000,-3905.27485141,0.00016695,2]
[421385209,1777548640000,-37.37877733,0.00016691,2]
[421385210,1777548640000,-500.0,0.00016691,2]
[421385206,1777548640000,-738.0,0.00016212,2]
[421385208,1777548640000,-535.79851785,0.00016691,2]
[421385190,1777548640000,-204.0,0.00013298,2]
[421385213,1777548640000,-377.0,0.00017341,2]
[421385227,1777548641000,-500.0,0.00017425,7]
[421385229,1777548641000,-500.0,0.00017425,7]
[421385235,1777548641000,-500.0,0.00017425,7]
[421385228,1777548641000,-500.0,0.00017425,7]
[421385230,1777548641000,-500.0,0.00017425,7]
[421385234,1777548641000,-500.0,0.00017425,7]
[421385232,1777548641000,-500.0,0.00017425,7]
[421385223,1777548641000,-500.0,0.00017425,7]
[421385217,1777548641000,-500.0,0.00017425,7]
[421385225,1777548641000,-500.0,0.00017425,7]
[421385221,1777548641000,-190.22488969,0.00017425,7]
[421385224,1777548641000,-500.0,0.00017425,7]
[421385222,1777548641000,-500.0,0.00017425,7]
[421385219,1777548641000,-500.0,0.00017425,7]
[421385218,1777548641000,-500.0,0.00017425,7]
[421385226,1777548641000,-500.0,0.00017425,7]
[421385220,1777548641000,-500.0,0.00017425,7]
[421385231,1777548641000,-500.0,0.00017425,7]
[421385236,1777548641000,-398.00169912,0.00017425,7]
[421385233,1777548641000,-500.0,0.00017425,7]
[421385254,1777548641000,-3303.29036947,0.00017599,2]
[421385252,1777548641000,-500.0,0.00017598,2]
[421385253,1777548641000,-609.10243684,0.00017598,2]
[421385247,1777548641000,-500.0,0.00017598,2]
[421385248,1777548641000,-500.0,0.00017598,2]
[421385245,1777548641000,-500.0,0.00017598,2]
[421385243,1777548641000,-500.0,0.00017598,2]
[421385246,1777548641000,-500.0,0.00017598,2]
[421385238,1777548641000,-420.19631432,0.00017598,2]
[421385241,1777548641000,-500.0,0.00017598,2]
[421385251,1777548641000,-500.0,0.00017598,2]
[421385250,1777548641000,-500.0,0.00017598,2]
[421385244,1777548641000,-500.0,0.00017598,2]
[421385249,1777548641000,-500.0,0.00017598,2]
[421385240,1777548641000,-500.0,0.00017598,2]
[421385239,1777548641000,-500.0,0.00017598,2]
[421385237,1777548641000,-170.4443247,0.00017425,7]
[421385242,1777548641000,-500.0,0.00017598,2]
[421385272,1777548643000,-2907.59361649,0.00017599,2]
[421385280,1777548646000,-49100.83315631,0.00017599,2]
[421385279,1777548646000,-2458.69490829,0.00017599,2]
[421385281,1777548646000,-15286.64332034,0.00017599,2]
[421385289,1777549832000,-150.0,0.00013087,2]
[421385299,1777549832000,-5000.0,0.00017771,2]
[421385290,1777549832000,-1000.0,0.00013699,2]
[421385293,1777549832000,-500.0,0.00017599,2]
[421385288,1777549832000,-604.0,0.00013,2]
[421385291,1777549832000,-1000.0,0.00016779,2]
[421385292,1777549832000,-2871.8811797,0.00017298,2]
[421385296,1777549832000,-185.0,0.00017662,2]
[421385294,1777549832000,-500.0,0.00017599,2]
[421385297,1777549832000,-232.17032403,0.0001776,2]
[421385287,1777549832000,-622.94,0.00013,2]
[421385303,1777549832000,-15570.27399704,0.00017773,2]
[421385295,1777549832000,-533.864,0.00017599,2]
[421385301,1777549832000,-2022.50363473,0.00017773,2]
[421385349,1777549838000,-2014.91020796,0.00017672,2]
[421385347,1777549838000,-6458.94265749,0.00017672,2]
[421386156,1777549846000,-484.30077108,0.00017672,2]
[421386213,1777549847000,-598.68014065,0.00017772,2]
[421386212,1777549847000,-294.13742003,0.00017772,2]
[421386208,1777549847000,-2032.01634923,0.00017672,2]
[421386210,1777549847000,-5000.0,0.00017771,2]
[421386217,1777549847000,-598.68014065,0.00017772,2]
[421386215,1777549847000,-598.68014065,0.00017772,2]
[421386219,1777549847000,-598.68014065,0.00017772,2]
[421386230,1777549847000,-598.68014065,0.00017772,2]
[421386204,1777549847000,-3820.0,0.00017672,2]
[421386232,1777549847000,-598.68014065,0.00017772,2]
[421386234,1777549847000,-598.68014065,0.00017772,2]
[421386236,1777549847000,-598.68014065,0.00017772,2]
[421386224,1777549847000,-598.68014065,0.00017772,2]
[421386226,1777549847000,-598.68014065,0.00017772,2]
[421386228,1777549847000,-598.68014065,0.00017772,2]
[421386240,1777549847000,-1882.4351831,0.00017773,2]
[421386222,1777549847000,-598.68014065,0.00017772,2]
[421386238,1777549847000,-598.68014065,0.00017772,2]
[421386221,1777549847000,-598.68014065,0.00017772,2]
[421392528,1777551041000,-681.52679593,0.00013699,2]
[421392549,1777551043000,-318.47320407,0.00013699,2]
[421392551,1777551043000,-615.0,0.00013699,2]
[421392553,1777551043000,-1345.33587587,0.00016438,2]
[421392571,1777551043000,-2032.26412413,0.00016438,2]
[421392580,1777551043000,-2991.34666509,0.00017573,2]
[421392575,1777551043000,-1000.0,0.00016674,2]
[421392576,1777551043000,-158.0,0.0001753,2]
[421392579,1777551043000,-251.370214,0.0001753,2]
[421392573,1777551043000,-3377.6,0.00016438,2]
[421392875,1777551046000,-537.6845,0.00017662,2]
[421392833,1777551046000,-7841.94456689,0.00017573,2]
[421392860,1777551046000,-2585.94242598,0.00017573,2]
[421392871,1777551046000,-445.202766,0.00017662,2]
[421392873,1777551046000,-151.0,0.00017662,2]
[421392867,1777551046000,-1994.43591434,0.00017573,2]
[421392869,1777551046000,-162.380719,0.00017662,2]
[421392877,1777551046000,-537.6845,0.00017662,2]
[421392885,1777551046000,-4629.93999229,0.00017671,2]
[421392888,1777551046000,-49220.7439735,0.00017673,2]
[421392882,1777551046000,-3730.0,0.00017671,2]
[421392879,1777551046000,-2150.738,0.00017662,2]
[421393069,1777551206000,500.77,0.00021918,120]
[421393070,1777551356000,50000.0,0.0002191,120]
[421393096,1777552232000,-1930.91205672,0.00017562,2]
[421393091,1777552232000,-445.202766,0.00017562,2]
[421393092,1777552232000,-175.73380721,0.00017562,2]
[421393089,1777552232000,-300.0,0.00017561,2]
[421393086,1777552232000,-203.14903357,0.00017472,2]
[421393081,1777552232000,-1000.0,0.00013699,2]
[421393087,1777552232000,-334.27,0.00017492,2]
[421393084,1777552232000,-185.0,0.00017447,2]
[421393099,1777552232000,-222.308472,0.00017573,2]
[421393083,1777552232000,-1000.0,0.00016552,2]
[421393082,1777552232000,-615.0,0.00013699,2]
[421393085,1777552232000,-158.0,0.00017472,2]
[421393090,1777552232000,-300.0,0.00017561,2]
[421393088,1777552232000,-185.0,0.00017561,2]
[421393095,1777552232000,-537.6845,0.00017562,2]
[421393109,1777552232000,-19.02543795,0.00017892,2]
[421393093,1777552232000,-202.80830008,0.00017562,2]
[421393107,1777552232000,-7841.94456689,0.00017873,2]
[421393106,1777552232000,-644.79446246,0.00017837,2]
[421393104,1777552232000,-500.0,0.00017773,2]
[421393102,1777552232000,-460.0,0.0001772,2]
[421393105,1777552232000,-621.78829552,0.00017782,2]
[421393108,1777552232000,-161.1003056,0.00017873,2]
[421393100,1777552232000,-557.5788265,0.00017617,2]
[421393101,1777552232000,-578.20924308,0.00017672,2]
[421393098,1777552232000,-456.0406255,0.00017564,2]
[421393097,1777552232000,-151.0,0.00017564,2]
[421393094,1777552232000,-537.6845,0.00017562,2]
[421393103,1777552232000,-599.60298507,0.00017727,2]
[421393147,1777552240000,-500.0,0.00017973,7]
[421393164,1777552240000,-500.0,0.00017973,7]
[421393149,1777552240000,-500.0,0.00017973,7]
[421393158,1777552240000,-500.0,0.00017973,7]
[421393152,1777552240000,-500.0,0.00017973,7]
[421393151,1777552240000,-500.0,0.00017973,7]
[421393153,1777552240000,-500.0,0.00017973,7]
[421393154,1777552240000,-500.0,0.00017973,7]
[421393156,1777552240000,-500.0,0.00017973,7]
[421393165,1777552240000,-500.0,0.00017973,7]
[421393155,1777552240000,-500.0,0.00017973,7]
[421393157,1777552240000,-500.0,0.00017973,7]
[421393162,1777552240000,-500.0,0.00017973,7]
[421393159,1777552240000,-500.0,0.00017973,7]
[421393160,1777552240000,-500.0,0.00017973,7]
[421393161,1777552240000,-500.0,0.00017973,7]
[421393170,1777552240000,-500.0,0.00017973,7]
[421393148,1777552240000,-500.0,0.00017973,7]
[421393150,1777552240000,-500.0,0.00017973,7]
[421393142,1777552240000,-500.0,0.00017973,7]
[421393128,1777552240000,-500.0,0.00017973,7]
[421393138,1777552240000,-500.0,0.00017973,7]
[421393167,1777552240000,-500.0,0.00017973,7]
[421393123,1777552240000,-2147.0,0.000179,2]
[421393122,1777552240000,-649.62641962,0.00017892,2]
[421393124,1777552240000,-693.3919763,0.00017947,2]
[421393125,1777552240000,-155.0,0.00017972,2]
[421393126,1777552240000,-500.0,0.00017973,7]
[421393129,1777552240000,-500.0,0.00017973,7]
[421393130,1777552240000,-500.0,0.00017973,7]
[421393131,1777552240000,-500.0,0.00017973,7]
[421393140,1777552240000,-500.0,0.00017973,7]
[421393127,1777552240000,-500.0,0.00017973,7]
[421393134,1777552240000,-500.0,0.00017973,7]
[421393137,1777552240000,-500.0,0.00017973,7]
[421393133,1777552240000,-500.0,0.00017973,7]
[421393141,1777552240000,-500.0,0.00017973,7]
[421393135,1777552240000,-500.0,0.00017973,7]
[421393144,1777552240000,-500.0,0.00017973,7]
[421393143,1777552240000,-500.0,0.00017973,7]
[421393139,1777552240000,-500.0,0.00017973,7]
[421393146,1777552240000,-500.0,0.00017973,7]
[421393132,1777552240000,-500.0,0.00017973,7]
[421393163,1777552240000,-500.0,0.00017973,7]
[421393179,1777552240000,-500.0,0.00017973,7]
[421393168,1777552240000,-500.0,0.00017973,7]
[421393193,1777552240000,-431.11522904,0.00017973,7]
[421393199,1777552240000,-500.0,0.00017973,7]
[421393209,1777552240000,-500.0,0.00017973,7]
[421393198,1777552240000,-500.0,0.00017973,7]
[421393202,1777552240000,-500.0,0.00017973,7]
[421393201,1777552240000,-500.0,0.00017973,7]
[421393200,1777552240000,-500.0,0.00017973,7]
[421393203,1777552240000,-500.0,0.00017973,7]
[421393208,1777552240000,-161.33,0.00017973,7]
[421393204,1777552240000,-500.0,0.00017973,7]
[421393205,1777552240000,-500.0,0.00017973,7]
[421393206,1777552240000,-500.0,0.00017973,7]
[421393211,1777552240000,-500.0,0.00017973,7]
[421393212,1777552240000,-205.20493367,0.00017973,7]
[421393210,1777552240000,-500.0,0.00017973,7]
[421393213,1777552240000,-294.79506633,0.00017973,7]
[421393215,1777552240000,-339.29438967,0.00017973,7]
[421393214,1777552240000,-500.0,0.00017973,7]
[421393169,1777552240000,-500.0,0.00017973,7]
[421393192,1777552240000,-68.88477096,0.00017973,7]
[421393194,1777552240000,-500.0,0.00017973,7]
[421393207,1777552240000,-500.0,0.00017973,7]
[421393191,1777552240000,-500.0,0.00017973,7]
[421393172,1777552240000,-500.0,0.00017973,7]
[421393171,1777552240000,-500.0,0.00017973,7]
[421393173,1777552240000,-500.0,0.00017973,7]
[421393187,1777552240000,-500.0,0.00017973,7]
[421393175,1777552240000,-500.0,0.00017973,7]
[421393176,1777552240000,-500.0,0.00017973,7]
[421393177,1777552240000,-500.0,0.00017973,7]
[421393174,1777552240000,-500.0,0.00017973,7]
[421393182,1777552240000,-500.0,0.00017973,7]
[421393183,1777552240000,-500.0,0.00017973,7]
[421393178,1777552240000,-500.0,0.00017973,7]
[421393181,1777552240000,-500.0,0.00017973,7]
[421393180,1777552240000,-500.0,0.00017973,7]
[421393196,1777552240000,-500.0,0.00017973,7]
[421393185,1777552240000,-500.0,0.00017973,7]
[421393188,1777552240000,-500.0,0.00017973,7]
[421393195,1777552240000,-500.0,0.00017973,7]
[421393197,1777552240000,-500.0,0.00017973,7]
[421393189,1777552240000,-500.0,0.00017973,7]
[421393190,1777552240000,-500.0,0.00017973,7]
[421393184,1777552240000,-500.0,0.00017973,7]
[421393260,1777552244000,-500.0,0.00017973,7]
[421393262,1777552244000,-500.0,0.00017973,7]
[421393259,1777552244000,-160.70561033,0.00017973,7]
[421393261,1777552244000,-500.0,0.00017973,7]
[421393267,1777552244000,-435.25561033,0.00017973,7]
[421393266,1777552244000,-64.74438967,0.00017973,7]
[421393264,1777552244000,-0.70561033,0.00017973,7]
[421393263,1777552244000,-499.29438967,0.00017973,7]
[421393265,1777552244000,-500.0,0.00017973,7]
[421393268,1777552244000,-7.74438967,0.00017973,7]
[421393272,1777552247000,-492.25561033,0.00017973,7]
[421393276,1777552247000,-500.0,0.00017973,7]
[421393275,1777552247000,-500.0,0.00017973,7]
[421393273,1777552247000,-500.0,0.00017973,7]
[421393274,1777552247000,-500.0,0.00017973,7]
[421393271,1777552247000,-2751.07633631,0.00017793,10]
[421393280,1777552247000,-500.0,0.00017973,7]
[421393281,1777552247000,-500.0,0.00017973,7]
[421393279,1777552247000,-500.0,0.00017973,7]
[421393277,1777552247000,-500.0,0.00017973,7]
[421393282,1777552247000,-98.62276179,0.00017973,7]
[421393278,1777552247000,-500.0,0.00017973,7]
[421393283,1777552275000,-300.0,7.599e-05,2]
[421393292,1777552633000,88022.5922735,0.00021917,120]
[421393306,1777553432000,-2751.07633631,7.448e-05,10]
[421393327,1777553438000,-857.11780783,7.6e-05,2]
[421393326,1777553438000,-300.0,7.599e-05,2]
[421393336,1777553441000,-850.67567506,7.6e-05,2]
[421393402,1777553443000,-1602.57427511,7.6e-05,2]
[421393477,1777554055000,-5000.0,7.01e-05,2]
[421393478,1777554078000,-519.0,7.01e-05,2]
[421393479,1777554102000,-3117.76203223,7.081e-05,2]
[421393480,1777554125000,-150.0,7.117e-05,2]
[421393481,1777554147000,-252.0,7.117e-05,2]
[421393482,1777554171000,-300.0,7.153e-05,2]
[421393483,1777554194000,-1200.0,7.153e-05,2]
[421393484,1777554217000,-155.0,7.598e-05,2]
[421393536,1777554638000,-50486.3177953,7.599e-05,2]
[421393542,1777554638000,-726.02268789,7.599e-05,2]
[421393540,1777554638000,-726.02268789,7.599e-05,2]
[421393541,1777554638000,-726.02268789,7.599e-05,2]
[421393537,1777554638000,-12058.0,7.599e-05,2]
[421393539,1777554638000,-346.17767184,7.599e-05,2]
[421393538,1777554638000,-1363.8091137,7.599e-05,2]
[421393543,1777554638000,-726.02268789,7.599e-05,2]
[421393546,1777554638000,-726.02268789,7.599e-05,2]
[421393548,1777554638000,-726.02268789,7.599e-05,2]
[421393545,1777554638000,-726.02268789,7.599e-05,2]
[421393547,1777554638000,-726.02268789,7.599e-05,2]
[421393557,1777554638000,-726.02268789,7.599e-05,2]
[421393556,1777554638000,-726.02268789,7.599e-05,2]
[421393551,1777554638000,-726.02268789,7.599e-05,2]
[421393553,1777554638000,-726.02268789,7.599e-05,2]